fUSD/lending_fUSD_20250105
["ID","MTS","AMOUNT","RATE_DAILY","PERIOD"]
[347701355,1736073106769,-500.0,9.863e-05,2]
[347701356,1736073106780,-500.0,9.863e-05,2]
[347701357,1736073106789,-500.0,9.863e-05,2]
[347701358,1736073106798,-500.0,9.863e-05,2]
[347701359,1736073106809,-747.18,9.863e-05,2]
[347701360,1736073106819,-503.21016895,9.863e-05,2]
[347701361,1736073106828,-1755.13,9.863e-05,2]
[347701362,1736073106839,-500.0,9.863e-05,2]
[347701363,1736073106848,-641.25433126,9.863e-05,2]
[347701364,1736073106858,-500.0,9.863e-05,2]
[347701365,1736073106867,-500.0,9.863e-05,2]
[347701366,1736073106876,-500.0,9.863e-05,2]
[347701367,1736073106885,-500.0,9.863e-05,2]
[347701368,1736073106895,-591.8,9.863e-05,2]
[347701369,1736073106904,-1733.2,9.863e-05,2]
[347701370,1736073106914,-500.0,9.863e-05,2]
[347701371,1736073106923,-503.96889454,9.863e-05,2]
[347701372,1736073106932,-500.0,9.863e-05,2]
[347701373,1736073106941,-500.0,9.863e-05,2]
[347701374,1736073106950,-778.03,9.863e-05,2]
[347701375,1736073106959,-500.0,9.863e-05,2]
[347701376,1736073106968,-500.0,9.863e-05,2]
[347701377,1736073106977,-500.0,9.863e-05,2]
[347701378,1736073106986,-293.08,9.863e-05,2]
[347701379,1736073106995,-590.76,9.863e-05,2]
[347701380,1736073107005,-500.0,9.863e-05,2]
[347701381,1736073107014,-502.08796493,9.863e-05,2]
[347701382,1736073107022,-500.0,9.863e-05,2]
[347701383,1736073107031,-500.0,9.863e-05,2]
[347701384,1736073107040,-500.0,9.863e-05,2]
[347701385,1736073107051,-501.95246315,9.863e-05,2]
[347701386,1736073107060,-574.04,9.863e-05,2]
[347701387,1736073107069,-560.39,9.863e-05,2]
[347701388,1736073107079,-500.0,9.863e-05,2]
[347701389,1736073107088,-500.0,9.863e-05,2]
[347701390,1736073107097,-500.0,9.863e-05,2]
[347701391,1736073107107,-500.0,9.863e-05,2]
[347701392,1736073107116,-500.0,9.863e-05,2]
[347701393,1736073107318,-500.0,9.863e-05,2]
[347701394,1736073107328,-500.0,9.863e-05,2]
[347701395,1736073107337,-645.18457993,9.863e-05,2]
[347701396,1736073107346,-500.0,9.863e-05,2]
[347701397,1736073107355,-568.81,9.863e-05,2]
[347701398,1736073107366,-500.0,9.863e-05,2]
[347701399,1736073107376,-500.0,9.863e-05,2]
[347701400,1736073107385,-676.43,9.863e-05,2]
[347701401,1736073107394,-500.0,9.863e-05,2]
[347701402,1736073107404,-874.59,9.863e-05,2]
[347701403,1736073107414,-500.0,9.863e-05,2]
[347701404,1736073107423,-500.0,9.863e-05,2]
[347701405,1736073107433,-500.0,9.863e-05,2]
[347701406,1736073107442,-821.41,9.863e-05,2]
[347701407,1736073107452,-616.56993068,9.863e-05,2]
[347701408,1736073107460,-680.69,9.863e-05,2]
[347701409,1736073107471,-507.01333084,9.863e-05,2]
[347701410,1736073107480,-539.36,9.863e-05,2]
[347701411,1736073107490,-500.0,9.863e-05,2]
[347701412,1736073107500,-389.91919735,9.863e-05,2]
[347701413,1736073107509,-500.0,9.863e-05,2]
[347701414,1736073107518,-500.0,9.863e-05,2]
[347701415,1736073107527,-500.0,9.863e-05,2]
[347701416,1736073107537,-914.79,9.863e-05,2]
[347701417,1736073107546,-500.0,9.863e-05,2]
[347701418,1736073107559,-543.0,9.863e-05,2]
[347701419,1736073107568,-2594.56,9.863e-05,2]
[347701420,1736073107577,-502.15683049,9.863e-05,2]
[347701421,1736073107587,-551.94,9.863e-05,2]
[347701422,1736073107596,-1500.34,9.863e-05,2]
[347701423,1736073107605,-1254.38,9.863e-05,2]
[347701424,1736073107615,-920.09,9.863e-05,2]
[347701425,1736073107626,-500.0,9.863e-05,2]
[347701426,1736073107638,-500.0,9.863e-05,2]
[347701427,1736073107648,-785.8,9.863e-05,2]
[347701428,1736073107657,-588.19,9.863e-05,2]
[347701429,1736073107667,-439.46,9.863e-05,2]
[347701430,1736073107676,-505.55963829,9.863e-05,2]
[347701431,1736073107686,-2006.93,9.863e-05,2]
[347701432,1736073107696,-610.53,9.863e-05,2]
[347701433,1736073107706,-612.12,9.863e-05,2]
[347701434,1736073107716,-501.9587472,9.863e-05,2]
[347701435,1736073107726,-766.820654,9.863e-05,2]
[347701436,1736073107735,-500.0,9.863e-05,2]
[347701437,1736073107744,-275.06290681,9.863e-05,2]
[347701438,1736073107753,-692.37,9.863e-05,2]
[347701439,1736073107763,-500.0,9.863e-05,2]
[347701440,1736073107772,-500.0,9.863e-05,2]
[347701441,1736073107781,-500.0,9.863e-05,2]
[347701442,1736073107791,-1136.87,9.863e-05,2]
[347701443,1736073107800,-555.14,9.863e-05,2]
[347701444,1736073107810,-570.26326184,9.863e-05,2]
[347701445,1736073107819,-500.0,9.863e-05,2]
[347701446,1736073107828,-2281.52,9.863e-05,2]
[347701447,1736073107838,-500.0,9.863e-05,2]
[347701448,1736073107847,-500.0,9.863e-05,2]
[347701449,1736073107856,-500.0,9.863e-05,2]
[347701450,1736073107866,-984.65,9.863e-05,2]
[347701451,1736073107876,-814.750091,9.863e-05,2]
[347701452,1736073107886,-3149.05,9.863e-05,2]
[347701453,1736073107895,-3149.05,9.863e-05,2]
[347701454,1736073107904,-675.15,9.863e-05,2]
[347701455,1736073107914,-500.0,9.863e-05,2]
[347701456,1736073107923,-500.0,9.863e-05,2]
[347701457,1736073107933,-500.0,9.863e-05,2]
[347701458,1736073107943,-500.0,9.863e-05,2]
[347701459,1736073107952,-751.22,9.863e-05,2]
[347701460,1736073107962,-864.21,9.863e-05,2]
[347701461,1736073107971,-500.0,9.863e-05,2]
[347701462,1736073107981,-1674.49,9.863e-05,2]
[347701463,1736073107991,-500.0,9.863e-05,2]
[347701464,1736073108001,-552.22,9.863e-05,2]
[347701465,1736073108010,-626.0965722,9.863e-05,2]
[347701466,1736073108020,-872.96,9.863e-05,2]
[347701467,1736073108029,-522.87747856,9.863e-05,2]
[347701468,1736073108039,-500.0,9.863e-05,2]
[347701469,1736073108050,-500.0,9.863e-05,2]
[347701470,1736073108060,-500.0,9.863e-05,2]
[347701471,1736073108070,-500.0,9.863e-05,2]
[347701472,1736073108080,-843.11,9.863e-05,2]
[347701473,1736073108090,-500.0,9.863e-05,2]
[347701474,1736073108099,-762.15,9.863e-05,2]
[347701475,1736073108109,-500.0,9.863e-05,2]
[347701476,1736073108119,-500.0,9.863e-05,2]
[347701477,1736073108128,-500.0,9.863e-05,2]
[347701478,1736073108137,-500.0,9.863e-05,2]
[347701479,1736073108147,-538.64,9.863e-05,2]
[347701480,1736073108156,-843.1,9.863e-05,2]
[347701481,1736073108166,-2666.42,9.863e-05,2]
[347701482,1736073108175,-500.0,9.863e-05,2]
[347701483,1736073108185,-500.0,9.863e-05,2]
[347701484,1736073108195,-500.0,9.863e-05,2]
[347701485,1736073108205,-500.0,9.863e-05,2]
[347701486,1736073108215,-500.0,9.863e-05,2]
[347701487,1736073108224,-1091.71,9.863e-05,2]
[347701488,1736073108234,-500.0,9.863e-05,2]
[347701489,1736073108243,-500.0,9.863e-05,2]
[347701490,1736073108253,-500.0,9.863e-05,2]
[347701491,1736073108263,-500.0,9.863e-05,2]
[347701492,1736073108272,-500.0,9.863e-05,2]
[347701493,1736073108282,-1282.29,9.863e-05,2]
[347701494,1736073108292,-610.44,9.863e-05,2]
[347701495,1736073108303,-1390.35,9.863e-05,2]
[347701496,1736073108312,-500.0,9.863e-05,2]
[347701497,1736073108322,-500.0,9.863e-05,2]
[347701498,1736073108331,-500.0,9.863e-05,2]
[347701499,1736073108341,-754.63,9.863e-05,2]
[347701500,1736073108351,-500.0,9.863e-05,2]
[347701501,1736073108360,-943.2,9.863e-05,2]
[347701502,1736073108369,-659.97,9.863e-05,2]
[347701503,1736073108379,-500.0,9.863e-05,2]
[347701504,1736073108388,-508.77,9.863e-05,2]
[347701505,1736073108398,-500.0,9.863e-05,2]
[347701506,1736073108408,-500.0,9.863e-05,2]
[347701507,1736073108417,-523.14,9.863e-05,2]
[347701508,1736073108427,-500.0,9.863e-05,2]
[347701509,1736073108436,-500.0,9.863e-05,2]
[347701510,1736073108446,-1025.15,9.863e-05,2]
[347701511,1736073108455,-633.64,9.863e-05,2]
[347701512,1736073108464,-500.0,9.863e-05,2]
[347701513,1736073108474,-1579.45,9.863e-05,2]
[347701514,1736073108484,-500.0,9.863e-05,2]
[347701515,1736073108494,-500.0,9.863e-05,2]
[347701516,1736073108503,-500.0,9.863e-05,2]
[347701517,1736073108513,-500.0,9.863e-05,2]
[347701518,1736073108523,-610.4,9.863e-05,2]
[347701519,1736073108532,-1549.01,9.863e-05,2]
[347701520,1736073108542,-1012.67,9.863e-05,2]
[347701521,1736073108553,-500.0,9.863e-05,2]
[347701522,1736073108563,-511.31,9.863e-05,2]
[347701523,1736073108573,-2023.98,9.863e-05,2]
[347701524,1736073108582,-5710.38,9.863e-05,2]
[347701525,1736073108591,-500.0,9.863e-05,2]
[347701526,1736073108600,-500.0,9.863e-05,2]
[347701527,1736073108609,-500.0,9.863e-05,2]
[347701528,1736073108618,-1000.79,9.863e-05,2]
[347701529,1736073108631,-500.0,9.863e-05,2]
[347701530,1736073108640,-500.0,9.863e-05,2]
[347701531,1736073108650,-890.29,9.863e-05,2]
[347701532,1736073108660,-500.0,9.863e-05,2]
[347701533,1736073108670,-2330.9,9.863e-05,2]
[347701534,1736073108680,-2854.56,9.863e-05,2]
[347701535,1736073108690,-1391.01,9.863e-05,2]
[347701536,1736073108700,-502.70555494,9.863e-05,2]
[347701537,1736073108711,-500.0,9.863e-05,2]
[347701538,1736073108722,-8474.68,9.863e-05,2]
[347701539,1736073108732,-708.73,9.863e-05,2]
[347701540,1736073108742,-1088.46,9.863e-05,2]
[347701541,1736073108752,-732.62,9.863e-05,2]
[347701542,1736073108761,-1378.56,9.863e-05,2]
[347701543,1736073108772,-500.0,9.863e-05,2]
[347701544,1736073108781,-500.0,9.863e-05,2]
[347701545,1736073108791,-2338.78,9.863e-05,2]
[347701546,1736073108803,-500.0,9.863e-05,2]
[347701547,1736073108812,-1532.97,9.863e-05,2]
[347701548,1736073108823,-500.0,9.863e-05,2]
[347701549,1736073108832,-500.0,9.863e-05,2]
[347701550,1736073108842,-500.0,9.863e-05,2]
[347701551,1736073108852,-7062.13,9.863e-05,2]
[347701552,1736073108863,-500.0,9.863e-05,2]
[347701553,1736073108873,-4964.91,9.863e-05,2]
[347701554,1736073108883,-1944.64,9.863e-05,2]
[347701555,1736073108893,-1047.52,9.863e-05,2]
[347701556,1736073108903,-3336.86,9.863e-05,2]
[347701557,1736073108912,-2791.16,9.863e-05,2]
[347701558,1736073108921,-678.23,9.863e-05,2]
[347701559,1736073108931,-500.0,9.863e-05,2]
[347701560,1736073108940,-500.0,9.863e-05,2]
[347701561,1736073108950,-505.47479646,9.863e-05,2]
[347701562,1736073108960,-500.0,9.863e-05,2]
[347701563,1736073108969,-1702.42,9.863e-05,2]
[347701564,1736073108979,-509.57,9.863e-05,2]
[347701565,1736073108988,-1332.86,9.863e-05,2]
[347701566,1736073108998,-2055.1,9.863e-05,2]
[347701567,1736073109007,-5964.19,9.863e-05,2]
[347701568,1736073109016,-500.0,9.863e-05,2]
[347701569,1736073109027,-500.0,9.863e-05,2]
[347701570,1736073109039,-714.83,9.863e-05,2]
[347701571,1736073109049,-500.0,9.863e-05,2]
[347701572,1736073109062,-1581.58,9.863e-05,2]
[347701573,1736073109072,-500.0,9.863e-05,2]
[347701574,1736073109081,-22486.0,9.863e-05,2]
[347701575,1736073109091,-500.0,9.863e-05,2]
[347701576,1736073109102,-500.0,9.863e-05,2]
[347701577,1736073109114,-460.21654168,9.863e-05,2]
[347701578,1736073109125,-500.0,9.863e-05,2]
[347701579,1736073109134,-1227.14,9.863e-05,2]
[347701580,1736073109144,-500.0,9.863e-05,2]
[347701581,1736073109153,-818.43,9.863e-05,2]
[347701582,1736073109163,-500.0,9.863e-05,2]
[347701583,1736073109172,-5808.82,9.863e-05,2]
[347701584,1736073109181,-1302.7,9.863e-05,2]
[347701585,1736073109191,-500.0,9.863e-05,2]
[347701586,1736073109201,-500.0,9.863e-05,2]
[347701587,1736073109210,-2458.16,9.863e-05,2]
[347701588,1736073109220,-500.0,9.863e-05,2]
[347701589,1736073109229,-1754.43,9.863e-05,2]
[347701590,1736073109239,-675.0,9.863e-05,2]
[347701591,1736073109248,-500.0,9.863e-05,2]
[347701592,1736073109258,-500.0,9.863e-05,2]
[347701593,1736073109267,-514.78,9.863e-05,2]
[347701594,1736073109276,-1304.1,9.863e-05,2]
[347701595,1736073109286,-500.0,9.863e-05,2]
[347701596,1736073109296,-500.0,9.863e-05,2]
[347701597,1736073109309,-500.0,9.863e-05,2]
[347701598,1736073109318,-5387.26,9.863e-05,2]
[347701599,1736073109328,-500.0,9.863e-05,2]
[347701600,1736073109337,-3629.76,9.863e-05,2]
[347701601,1736073109346,-500.0,9.863e-05,2]
[347701602,1736073109355,-1360.04,9.863e-05,2]
[347701603,1736073109364,-3235.55,9.863e-05,2]
[347701604,1736073109374,-965.04,9.863e-05,2]
[347701605,1736073109383,-500.0,9.863e-05,2]
[347701606,1736073109393,-500.0,9.863e-05,2]
[347701607,1736073109402,-500.0,9.863e-05,2]
[347701608,1736073109411,-8457.77,9.863e-05,2]
[347701609,1736073109420,-500.0,9.863e-05,2]
[347701610,1736073109430,-1619.88,9.863e-05,2]
[347701611,1736073109439,-272.29412697,9.863e-05,2]
[347701612,1736073109449,-500.0,9.863e-05,2]
[347701613,1736073109458,-500.0,9.863e-05,2]
[347701614,1736073109468,-500.0,9.863e-05,2]
[347701615,1736073109477,-227.27,9.863e-05,2]
[347701616,1736073109486,-1821.63,9.863e-05,2]
[347701617,1736073109496,-500.0,9.863e-05,2]
[347701618,1736073109505,-4062.07,9.863e-05,2]
[347701619,1736073109515,-3994.03,9.863e-05,2]
[347701620,1736073109525,-5788.17,9.863e-05,2]
[347701621,1736073109534,-500.0,9.863e-05,2]
[347701622,1736073109544,-573.65,9.863e-05,2]
[347701623,1736073109555,-2653.92,9.863e-05,2]
[347701624,1736073109564,-1496.52,9.863e-05,2]
[347701625,1736073109574,-1368.79,9.863e-05,2]
[347701626,1736073109583,-1155.87,9.863e-05,2]
[347701627,1736073109591,-5039.88,9.863e-05,2]
[347701628,1736073109599,-500.0,9.863e-05,2]
[347701629,1736073109608,-2154.25,9.863e-05,2]
[347701630,1736073109617,-500.0,9.863e-05,2]
[347701631,1736073109629,-1020.47,9.863e-05,2]
[347701632,1736073109639,-4106.66,9.863e-05,2]
[347701633,1736073109647,-1726.03,9.863e-05,2]
[347701634,1736073109659,-12142.01,9.863e-05,2]
[347701635,1736073109669,-6672.98,9.863e-05,2]
[347701636,1736073109680,-500.0,9.863e-05,2]
[347701637,1736073109690,-950.85,9.863e-05,2]
[347701638,1736073109699,-1159.36,9.863e-05,2]
[347701639,1736073109709,-500.0,9.863e-05,2]
[347701640,1736073109719,-500.0,9.863e-05,2]
[347701641,1736073109729,-1987.28,9.863e-05,2]
[347701642,1736073109737,-855.95,9.863e-05,2]
[347701643,1736073109747,-1460.51,9.863e-05,2]
[347701644,1736073109756,-514.365953,9.863e-05,2]
[347701645,1736073109767,-3002.76,9.863e-05,2]
[347701646,1736073109776,-500.0,9.863e-05,2]
[347701647,1736073109787,-500.0,9.863e-05,2]
[347701648,1736073109796,-586.93,9.863e-05,2]
[347701649,1736073109807,-500.0,9.863e-05,2]
[347701650,1736073109816,-500.0,9.863e-05,2]
[347701651,1736073109826,-500.0,9.863e-05,2]
[347701652,1736073109836,-500.0,9.863e-05,2]
[347701653,1736073109846,-5216.95,9.863e-05,2]
[347701654,1736073109855,-500.0,9.863e-05,2]
[347701655,1736073109864,-500.0,9.863e-05,2]
[347701656,1736073109874,-830.94,9.863e-05,2]
[347701657,1736073109884,-6065.56,9.863e-05,2]
[347701658,1736073109894,-500.0,9.863e-05,2]
[347701659,1736073109902,-2001.97,9.863e-05,2]
[347701660,1736073109912,-1038.806774,9.863e-05,2]
[347701661,1736073109921,-1245.32,9.863e-05,2]
[347701662,1736073109930,-500.0,9.863e-05,2]
[347701663,1736073109939,-888.76,9.863e-05,2]
[347701664,1736073109948,-683.25,9.863e-05,2]
[347701665,1736073109957,-500.0,9.863e-05,2]
[347701666,1736073109966,-500.0,9.863e-05,2]
[347701667,1736073109975,-500.0,9.863e-05,2]
[347701668,1736073109984,-1777.99,9.863e-05,2]
[347701669,1736073109993,-537.34,9.863e-05,2]
[347701670,1736073110002,-501.62912881,9.863e-05,2]
[347701671,1736073110011,-500.0,9.863e-05,2]
[347701672,1736073110022,-697.87,9.863e-05,2]
[347701673,1736073110031,-500.0,9.863e-05,2]
[347701674,1736073110039,-500.0,9.863e-05,2]
[347701675,1736073110049,-2094.35,9.863e-05,2]
[347701676,1736073110059,-526.43,9.863e-05,2]
[347701677,1736073110068,-867.33,9.863e-05,2]
[347701678,1736073110077,-4670.12,9.863e-05,2]
[347701679,1736073110087,-500.0,9.863e-05,2]
[347701680,1736073110096,-500.0,9.863e-05,2]
[347701681,1736073110106,-1804.74,9.863e-05,2]
[347701682,1736073110116,-764.62,9.863e-05,2]
[347701683,1736073110126,-500.0,9.863e-05,2]
[347701684,1736073110136,-2908.32,9.863e-05,2]
[347701685,1736073110146,-500.0,9.863e-05,2]
[347701686,1736073110158,-1318.92,9.863e-05,2]
[347701687,1736073110167,-1369.41,9.863e-05,2]
[347701688,1736073110178,-500.0,9.863e-05,2]
[347701689,1736073110188,-500.0,9.863e-05,2]
[347701690,1736073110200,-500.0,9.863e-05,2]
[347701691,1736073110209,-500.0,9.863e-05,2]
[347701692,1736073110222,-500.0,9.863e-05,2]
[347701693,1736073110232,-500.0,9.863e-05,2]
[347701694,1736073110241,-4502.35,9.863e-05,2]
[347701695,1736073110252,-1315.12,9.863e-05,2]
[347701696,1736073110262,-500.0,9.863e-05,2]
[347701697,1736073110271,-751.41,9.863e-05,2]
[347701698,1736073110279,-500.0,9.863e-05,2]
[347701699,1736073110469,-631.43,9.917e-05,2]
[347701700,1736073110479,-366828.81375167,9.988e-05,2]
[347701701,1736073110488,-2182.94523991,9.998e-05,2]
[347701702,1736073110497,-1549.13,9.999e-05,2]
[347701703,1736073110506,-1549.13,9.999e-05,2]
[347701704,1736073110516,-1549.13,9.999e-05,2]
[347701705,1736073110526,-1549.13,9.999e-05,2]
[347701706,1736073110535,-1549.13,9.999e-05,2]
[347701707,1736073110544,-1549.13,9.999e-05,2]
[347701708,1736073110555,-2589.06,9.999e-05,2]
[347701709,1736073110564,-2589.06,9.999e-05,2]
[347701710,1736073110573,-2589.06,9.999e-05,2]
[347701711,1736073110583,-2589.06,9.999e-05,2]
[347701712,1736073110592,-2589.06,9.999e-05,2]
[347701713,1736073110601,-2589.06,9.999e-05,2]
[347701714,1736073110610,-573.13,9.999e-05,2]
[347701715,1736073110620,-573.13,9.999e-05,2]
[347701716,1736073110633,-573.13,9.999e-05,2]
[347701717,1736073110643,-573.13,9.999e-05,2]
[347701718,1736073110652,-573.13,9.999e-05,2]
[347701719,1736073110661,-573.13,9.999e-05,2]
[347701720,1736073110671,-77424.39526728,9.999e-05,2]
[347701721,1736073110680,-5401.22262363,0.0001,2]
[347701722,1736073110689,-300.18768301,0.0001,2]
[347701723,1736073110698,-1116550.85358559,0.0001,2]
[347701724,1736073111238,-13964.58547709,0.0001,2]
[347701725,1736073111249,-2589.50044772,0.0001,2]
[347701726,1736073111260,-596.51555169,0.0001,2]
[347701727,1736073111919,-500.0,8.418e-05,2]
[347701728,1736073111928,-808.34,8.493e-05,2]
[347701729,1736073111937,-808.34,8.767e-05,2]
[347701730,1736073111946,-500.0,9.041e-05,2]
[347701731,1736073111956,-808.34,9.041e-05,2]
[347701732,1736073111965,-16572.72265764,9.314e-05,2]
[347701733,1736073111975,-500.0,9.315e-05,2]
[347701734,1736073111984,-808.34,9.315e-05,2]
[347701735,1736073111994,-789.96,9.589e-05,2]
[347701736,1736073112003,-253.20022358,9.589e-05,2]
[347701737,1736073112015,-246.79977642,9.589e-05,2]
[347701738,1736073112025,-808.34,9.589e-05,2]
[347701739,1736073112034,-789.96,9.863e-05,2]
[347701740,1736073112043,-500.0,9.863e-05,2]
[347701741,1736073112054,-808.34,9.863e-05,2]
[347701742,1736073112063,-18705.85328078,0.0001,2]
[347701743,1736073112074,-320.000002,0.0001,2]
[347701744,1736073112092,-948.18708705,0.0001,2]
[347701745,1736073112103,-11633.98090159,0.0001,2]
[347701746,1736073112114,-548.915419,0.0001,2]
[347701747,1736073112126,-396.18532911,0.0001,2]
[347701748,1736073112185,-500.0,8.418e-05,2]
[347701749,1736073112195,-6937.089528,0.0001,2]
[347701750,1736073112304,-290110.81339038,0.0001,2]
[347701751,1736073112314,-151.0,0.0001,2]
[347701752,1736073112323,-288.04,0.0001,2]
[347701753,1736073112332,-15438.46154939,0.0001,3]
[347701754,1736073112342,-427624.57663622,0.0001,2]
[347701755,1736073112351,-3000.0,0.0001,2]
[347701756,1736073112360,-1236.89801085,0.00010013,2]
[347701757,1736073112370,-17410.10367664,0.00010013,2]
[347701758,1736073112379,-5604.457,0.00010013,2]
[347701759,1736073112388,-174.785,0.00010013,2]
[347701760,1736073112400,-150.0,0.00010044,2]
[347701761,1736073112409,-150.0,0.00010044,2]
[347701762,1736073112418,-151.125,0.00010044,2]
[347701763,1736073112427,-154.235,0.00010044,2]
[347701764,1736073112436,-150.0,0.00010044,2]
[347701765,1736073112445,-150.0,0.00010044,2]
[347701766,1736073112455,-157.095,0.00010044,2]
[347701767,1736073112463,-164.76,0.00010044,2]
[347701768,1736073112660,-276.367,0.00010044,2]
[347701769,1736073112671,-150.0,0.00010044,2]
[347701770,1736073112681,-180.073,0.00010044,2]
[347701771,1736073112691,-151.65,0.00010044,2]
[347701772,1736073112701,-631.43,0.00010054,2]
[347701773,1736073112711,-1287.52,0.00010062,2]
[347701774,1736073112722,-2496.37,0.00010062,2]
[347701775,1736073112731,-2796.19,0.00010062,2]
[347701776,1736073112742,-1853.74,0.00010062,2]
[347701777,1736073112752,-3951.49,0.00010062,2]
[347701778,1736073112762,-1766.82,0.00010062,2]
[347701779,1736073112771,-3384.14,0.00010062,2]
[347701780,1736073112781,-3722.48,0.00010062,2]
[347701781,1736073112790,-500.0,0.00010062,2]
[347701782,1736073112799,-2401.98,0.00010062,2]
[347701783,1736073112809,-5048.31,0.00010062,2]
[347701784,1736073112818,-500.0,0.00010062,2]
[347701785,1736073112828,-1548.23,0.00010062,2]
[347701786,1736073112838,-2302.39,0.00010062,2]
[347701787,1736073112847,-501.56206652,0.00010063,2]
[347701788,1736073112856,-473.20199535,0.00010063,2]
[347701789,1736073112866,-500.0,0.00010063,2]
[347701790,1736073112876,-500.0,0.00010063,2]
[347701791,1736073112887,-500.0,0.00010063,2]
[347701792,1736073112896,-500.0,0.00010063,2]
[347701793,1736073112907,-500.0,0.00010063,2]
[347701794,1736073112917,-500.0,0.00010063,2]
[347701795,1736073112927,-500.0,0.00010063,2]
[347701796,1736073112937,-642.92,0.00010063,2]
[347701797,1736073112949,-1549.13,0.00010063,2]
[347701798,1736073112959,-500.0,0.00010063,2]
[347701799,1736073112968,-500.0,0.00010063,2]
[347701800,1736073112978,-332.0,0.00010063,2]
[347701801,1736073112987,-293.61,0.00010063,2]
[347701802,1736073112997,-182.32,0.00010063,2]
[347701803,1736073113006,-500.0,0.00010063,2]
[347701804,1736073113016,-500.0,0.00010063,2]
[347701805,1736073113026,-500.0,0.00010063,2]
[347701806,1736073113035,-607.01,0.00010063,2]
[347701807,1736073113045,-500.0,0.00010063,2]
[347701808,1736073113055,-500.0,0.00010063,2]
[347701809,1736073113064,-500.0,0.00010063,2]
[347701810,1736073113074,-500.0,0.00010063,2]
[347701811,1736073113083,-500.0,0.00010063,2]
[347701812,1736073113093,-500.0,0.00010063,2]
[347701813,1736073113104,-500.0,0.00010063,2]
[347701814,1736073113113,-500.0,0.00010063,2]
[347701815,1736073113123,-500.0,0.00010063,2]
[347701816,1736073113132,-500.0,0.00010063,2]
[347701817,1736073113141,-500.0,0.00010063,2]
[347701818,1736073113151,-500.0,0.00010063,2]
[347701819,1736073113161,-500.0,0.00010063,2]
[347701820,1736073113170,-500.0,0.00010063,2]
[347701821,1736073113179,-500.0,0.00010063,2]
[347701822,1736073113189,-500.0,0.00010063,2]
[347701823,1736073113201,-500.0,0.00010063,2]
[347701824,1736073113212,-2589.06,0.00010063,2]
[347701825,1736073113221,-500.0,0.00010063,2]
[347701826,1736073113230,-500.0,0.00010063,2]
[347701827,1736073113240,-500.0,0.00010063,2]
[347701828,1736073113250,-500.0,0.00010063,2]
[347701829,1736073113260,-500.0,0.00010063,2]
[347701830,1736073113269,-500.0,0.00010063,2]
[347701831,1736073113279,-500.0,0.00010063,2]
[347701832,1736073113288,-500.0,0.00010063,2]
[347701833,1736073113297,-500.0,0.00010063,2]
[347701834,1736073113308,-462.79,0.00010063,2]
[347701835,1736073113317,-500.0,0.00010063,2]
[347701836,1736073113326,-1031.44,0.00010063,2]
[347701837,1736073113336,-500.0,0.00010063,2]
[347701838,1736073113346,-580.64,0.00010063,2]
[347701839,1736073113355,-500.0,0.00010063,2]
[347701840,1736073113364,-500.0,0.00010063,2]
[347701841,1736073113374,-500.0,0.00010063,2]
[347701842,1736073113384,-500.0,0.00010063,2]
[347701843,1736073113393,-500.0,0.00010063,2]
[347701844,1736073113402,-746.64,0.00010063,2]
[347701845,1736073113412,-265.74,0.00010063,2]
[347701846,1736073113421,-500.0,0.00010063,2]
[347701847,1736073113431,-500.0,0.00010063,2]
[347701848,1736073113440,-500.0,0.00010063,2]
[347701849,1736073113450,-500.0,0.00010063,2]
[347701850,1736073113459,-509.6,0.00010063,2]
[347701851,1736073113469,-1027.79,0.00010063,2]
[347701852,1736073113479,-500.0,0.00010063,2]
[347701853,1736073113488,-955.19,0.00010063,2]
[347701854,1736073113497,-500.0,0.00010063,2]